[Event "*** Titled Tuesday Blitz"]
[Site "Chess.com"]
[Date "2020.11.24"]
[Round "8"]
[White "ExtremeLearner"]
[Black "pavelalexandru07"]
[Result "1-0"]
[WhiteElo "2377"]
[BlackElo "2282"]
[TimeControl "180+1"]
[EndTime "11:47:12 PST"]
[Termination "ExtremeLearner won by resignation"]

1. d4 {[%clk 0:03:00.9]} 1... Nf6 {[%clk 0:02:59.6]} 2. Nf3 {[%clk 0:03:01.8]}
2... c5 {[%clk 0:02:59]} 3. g3 {[%clk 0:03:02.7]} 3... e6 {[%clk 0:02:58.2]} 4.
Bg2 {[%clk 0:02:58.5]} 4... Be7 {[%clk 0:02:54]} 5. O-O {[%clk 0:02:54.4]} 5...
O-O {[%clk 0:02:47.9]} 6. dxc5 {[%clk 0:02:48.5]} 6... Bxc5 {[%clk 0:02:47.3]}
7. c4 {[%clk 0:02:49.4]} 7... Nc6 {[%clk 0:02:46.8]} 8. a3 {[%clk 0:02:47]} 8...
Be7 {[%clk 0:02:45.9]} 9. b4 {[%clk 0:02:46.9]} 9... d6 {[%clk 0:02:36.5]} 10.
Bb2 {[%clk 0:02:46.3]} 10... a6 {[%clk 0:02:34.4]} 11. Nc3 {[%clk 0:02:46]}
11... Bd7 {[%clk 0:02:27.5]} 12. e4 {[%clk 0:02:38.8]} 12... Re8 {[%clk
0:02:25]} 13. Rc1 {[%clk 0:02:36.8]} 13... Rc8 {[%clk 0:02:18]} 14. Re1 {[%clk
0:02:33.5]} 14... Bf8 {[%clk 0:02:08.5]} 15. h3 {[%clk 0:02:28.7]} 15... Ne5
{[%clk 0:02:04]} 16. Nxe5 {[%clk 0:02:27.4]} 16... dxe5 {[%clk 0:02:04.1]} 17.
c5 {[%clk 0:02:19]} 17... Bc6 {[%clk 0:02:03.8]} 18. f3 {[%clk 0:02:08.1]} 18...
Qc7 {[%clk 0:02:01]} 19. g4 {[%clk 0:02:01.5]} 19... Be7 {[%clk 0:01:44.6]} 20.
Qe2 {[%clk 0:01:56.2]} 20... Red8 {[%clk 0:01:43.9]} 21. Red1 {[%clk 0:01:54.8]}
21... Ne8 {[%clk 0:01:27.1]} 22. Qe3 {[%clk 0:01:37.8]} 22... h6 {[%clk
0:01:22]} 23. Qe1 {[%clk 0:01:18.2]} 23... Bg5 {[%clk 0:01:15.8]} 24. Rb1 {[%clk
0:01:13.1]} 24... Rxd1 {[%clk 0:01:10.4]} 25. Rxd1 {[%clk 0:01:12.1]} 25... Rd8
{[%clk 0:01:10.9]} 26. Bc1 {[%clk 0:01:07.6]} 26... Bxc1 {[%clk 0:00:45.1]} 27.
Rxc1 {[%clk 0:01:06.7]} 27... Nf6 {[%clk 0:00:39.8]} 28. Rd1 {[%clk 0:01:03.6]}
28... Rxd1 {[%clk 0:00:39.1]} 29. Qxd1 {[%clk 0:01:04.5]} 29... Qd7 {[%clk
0:00:37.7]} 30. Qxd7 {[%clk 0:01:03.6]} 30... Bxd7 {[%clk 0:00:37.2]} 31. a4
{[%clk 0:01:03.5]} 31... Kf8 {[%clk 0:00:37.5]} 32. b5 {[%clk 0:01:03.4]} 32...
axb5 {[%clk 0:00:37.8]} 33. axb5 {[%clk 0:01:04.3]} 33... Ke7 {[%clk 0:00:38]}
34. Bf1 {[%clk 0:01:03.5]} 34... Kd8 {[%clk 0:00:38]} 35. Kf2 {[%clk 0:01:00]}
35... Kc7 {[%clk 0:00:33]} 36. Ke3 {[%clk 0:01:00.1]} 36... Be8 {[%clk
0:00:28.1]} 37. Kd3 {[%clk 0:00:59.6]} 37... Nd7 {[%clk 0:00:25]} 38. Kc4 {[%clk
0:00:59.9]} 38... g6 {[%clk 0:00:22.5]} 39. Na4 {[%clk 0:00:58.2]} 39... f6
{[%clk 0:00:20.6]} 40. b6+ {[%clk 0:00:57.4]} 40... Kc8 {[%clk 0:00:13.5]} 41.
Nc3 {[%clk 0:00:55]} 41... Nb8 {[%clk 0:00:12.8]} 42. Nb5 {[%clk 0:00:53.9]}
42... Bxb5+ {[%clk 0:00:12.8]} 43. Kxb5 {[%clk 0:00:54.7]} 43... Nc6 {[%clk
0:00:13.4]} 44. Kc4 {[%clk 0:00:46.5]} 44... Nd4 {[%clk 0:00:10.3]} 45. Bg2
{[%clk 0:00:47]} 45... Kd7 {[%clk 0:00:09.9]} 46. f4 {[%clk 0:00:46.3]} 46... g5
{[%clk 0:00:08.8]} 47. f5 {[%clk 0:00:44.3]} 47... exf5 {[%clk 0:00:08.8]} 48.
exf5 {[%clk 0:00:45.2]} 48... Nc6 {[%clk 0:00:08.1]} 49. Be4 {[%clk 0:00:44.6]}
49... Na5+ {[%clk 0:00:07.6]} 50. Kb5 {[%clk 0:00:44.1]} 50... Nb3 {[%clk
0:00:08]} 51. Kb4 {[%clk 0:00:43]} 51... Nd4 {[%clk 0:00:08.6]} 52. Kc4 {[%clk
0:00:42.6]} 52... Nc6 {[%clk 0:00:08]} 53. Bd5 {[%clk 0:00:42.4]} 53... Nd8
{[%clk 0:00:07.4]} 54. Kb5 {[%clk 0:00:40.6]} 54... Kc8 {[%clk 0:00:06.9]} 55.
Be6+ {[%clk 0:00:37.9]} 55... Kb8 {[%clk 0:00:06.5]} 56. Bd5 {[%clk 0:00:36.6]}
56... Kc8 {[%clk 0:00:06.6]} 57. Be4 {[%clk 0:00:36.8]} 57... Kd7 {[%clk
0:00:06.6]} 58. Kc4 {[%clk 0:00:29.3]} 58... Nc6 {[%clk 0:00:05.6]} 59. Bd5
{[%clk 0:00:29.5]} 59... Na5+ {[%clk 0:00:05.1]} 60. Kb5 {[%clk 0:00:29.4]}
60... Nc6 {[%clk 0:00:05.3]} 61. Bxc6+ {[%clk 0:00:28.8]} 61... bxc6+ {[%clk
0:00:05.7]} 62. Ka6 {[%clk 0:00:29.5]} 62... e4 {[%clk 0:00:06.4]} 63. b7 {[%clk
0:00:30]} 63... e3 {[%clk 0:00:05.7]} 64. b8=Q {[%clk 0:00:30]} 64... e2 {[%clk
0:00:05.8]} 65. Qb7+ {[%clk 0:00:30]} 65... Kd8 {[%clk 0:00:05.6]} 66. Qb1
{[%clk 0:00:30.9]} 66... Kd7 {[%clk 0:00:04.8]} 67. Qe1 {[%clk 0:00:31.8]} 67...
Kc7 {[%clk 0:00:04.8]} 68. Qxe2 {[%clk 0:00:32.7]} 68... Kb8 {[%clk 0:00:05.3]}
69. Qe6 {[%clk 0:00:33.3]} 69... Kc7 {[%clk 0:00:04.7]} 70. Qd6+ {[%clk
0:00:34.2]} 70... Kc8 {[%clk 0:00:04.7]} 71. Kb6 {[%clk 0:00:35.1]} 71... h5
{[%clk 0:00:04.2]} 72. Kxc6 {[%clk 0:00:35.3]} 1-0

[Event "*** Titled Tuesday Blitz"]
[Site "Chess.com"]
[Date "2020.11.24"]
[Round "8"]
[White "exoticprincess"]
[Black "BocharovD"]
[Result "0-1"]
[WhiteElo "2896"]
[BlackElo "2829"]
[TimeControl "180+1"]
[EndTime "11:47:13 PST"]
[Termination "BocharovD won on time"]

1. b3 {[%clk 0:03:00.9]} 1... c5 {[%clk 0:02:45.7]} 2. Bb2 {[%clk 0:03:01.8]}
2... Nc6 {[%clk 0:02:45.4]} 3. e3 {[%clk 0:03:02]} 3... d6 {[%clk 0:02:37.7]} 4.
Ne2 {[%clk 0:02:57.4]} 4... Nf6 {[%clk 0:02:34.2]} 5. d4 {[%clk 0:02:56.5]} 5...
cxd4 {[%clk 0:02:34]} 6. Nxd4 {[%clk 0:02:56.3]} 6... e6 {[%clk 0:02:24]} 7. c4
{[%clk 0:02:52.8]} 7... Be7 {[%clk 0:02:24]} 8. Nc3 {[%clk 0:02:52.9]} 8... O-O
{[%clk 0:02:23.5]} 9. Be2 {[%clk 0:02:53.1]} 9... Bd7 {[%clk 0:02:23.8]} 10. O-O
{[%clk 0:02:53]} 10... a6 {[%clk 0:02:24.1]} 11. a4 {[%clk 0:02:49.2]} 11... Qc7
{[%clk 0:02:19.5]} 12. Qd2 {[%clk 0:02:47.4]} 12... Rfd8 {[%clk 0:02:14.3]} 13.
Rfc1 {[%clk 0:02:47.3]} 13... Qa5 {[%clk 0:02:06.5]} 14. h3 {[%clk 0:02:42.7]}
14... Rac8 {[%clk 0:02:00]} 15. Ba3 {[%clk 0:02:40.6]} 15... Be8 {[%clk
0:01:52.3]} 16. Rd1 {[%clk 0:02:34.6]} 16... Qb6 {[%clk 0:01:49.9]} 17. Rab1
{[%clk 0:02:31.3]} 17... Ne5 {[%clk 0:01:48.2]} 18. a5 {[%clk 0:02:26.3]} 18...
Qc7 {[%clk 0:01:43.8]} 19. f4 {[%clk 0:01:45]} 19... Nc6 {[%clk 0:01:40.7]} 20.
Nxc6 {[%clk 0:01:36.4]} 20... Bxc6 {[%clk 0:01:40.2]} 21. b4 {[%clk 0:01:19.3]}
21... d5 {[%clk 0:01:31.3]} 22. c5 {[%clk 0:01:19.3]} 22... e5 {[%clk
0:01:24.5]} 23. fxe5 {[%clk 0:01:17.3]} 23... Qxe5 {[%clk 0:01:24.1]} 24. Bb2
{[%clk 0:01:17.8]} 24... Qg3 {[%clk 0:01:21.1]} 25. Bf3 {[%clk 0:01:16.5]} 25...
Ne4 {[%clk 0:01:09.1]} 26. Qe1 {[%clk 0:01:16.5]} 26... Qg5 {[%clk 0:01:05.8]}
27. Ne2 {[%clk 0:01:11.4]} 27... Qxe3+ {[%clk 0:01:04.7]} 28. Kh2 {[%clk
0:01:09.3]} 28... Qh6 {[%clk 0:00:47.2]} 29. Nd4 {[%clk 0:01:06.1]} 29... Bh4
{[%clk 0:00:42.2]} 30. Nf5 {[%clk 0:00:32.1]} 30... Qf4+ {[%clk 0:00:41]} 31. g3
{[%clk 0:00:32.3]} 31... Qxf5 {[%clk 0:00:40.4]} 32. Bxe4 {[%clk 0:00:30.2]}
32... dxe4 {[%clk 0:00:38.8]} 33. gxh4 {[%clk 0:00:30.5]} 33... Rd3 {[%clk
0:00:37.1]} 34. Rxd3 {[%clk 0:00:22.4]} 34... exd3 {[%clk 0:00:36.4]} 35. Qg3
{[%clk 0:00:22.7]} 35... f6 {[%clk 0:00:29.4]} 36. Rg1 {[%clk 0:00:22.4]} 36...
Rc7 {[%clk 0:00:29.5]} 37. Bc1 {[%clk 0:00:19.2]} 37... Re7 {[%clk 0:00:27.9]}
38. Be3 {[%clk 0:00:18.5]} 38... Qe5 {[%clk 0:00:20.6]} 39. Qxe5 {[%clk
0:00:15.6]} 39... Rxe5 {[%clk 0:00:21.5]} 40. Re1 {[%clk 0:00:15.4]} 40... Re4
{[%clk 0:00:18]} 41. Bd2 {[%clk 0:00:15]} 41... Rxh4 {[%clk 0:00:18.1]} 42. Kg3
{[%clk 0:00:15.3]} 42... Re4 {[%clk 0:00:14.9]} 43. Rxe4 {[%clk 0:00:15]} 43...
Bxe4 {[%clk 0:00:15.8]} 44. h4 {[%clk 0:00:15.9]} 44... Kf7 {[%clk 0:00:15.9]}
45. Kf4 {[%clk 0:00:16]} 45... Bc6 {[%clk 0:00:16.3]} 46. Ke3 {[%clk 0:00:16.1]}
46... Bb5 {[%clk 0:00:16.2]} 47. Kd4 {[%clk 0:00:16.5]} 47... Ke6 {[%clk
0:00:16.2]} 48. Ke4 {[%clk 0:00:16.1]} 48... g6 {[%clk 0:00:16.2]} 49. Bh6
{[%clk 0:00:15.2]} 49... Bc6+ {[%clk 0:00:14.3]} 50. Kxd3 {[%clk 0:00:14.9]}
50... Kf5 {[%clk 0:00:15.2]} 51. Bg7 {[%clk 0:00:11.2]} 51... g5 {[%clk
0:00:14.6]} 52. h5 {[%clk 0:00:11.1]} 52... Ke6 {[%clk 0:00:11.5]} 53. h6 {[%clk
0:00:11.2]} 53... f5 {[%clk 0:00:11.3]} 54. Kd4 {[%clk 0:00:10.4]} 54... f4
{[%clk 0:00:11.5]} 55. Bf8 {[%clk 0:00:10.6]} 55... Kf5 {[%clk 0:00:11.8]} 56.
Be7 {[%clk 0:00:10.5]} 56... g4 {[%clk 0:00:12.2]} 57. Kd3 {[%clk 0:00:06.3]}
57... g3 {[%clk 0:00:12.5]} 58. Ke2 {[%clk 0:00:04.4]} 58... Kg4 {[%clk
0:00:09.3]} 59. Bf6 {[%clk 0:00:02.8]} 59... f3+ {[%clk 0:00:09.6]} 0-1

[Event "*** Titled Tuesday Blitz"]
[Site "Chess.com"]
[Date "2020.11.24"]
[Round "8"]
[White "WPWPWP-2015"]
[Black "Agoking701"]
[Result "1-0"]
[WhiteElo "2507"]
[BlackElo "2344"]
[TimeControl "180+1"]
[EndTime "11:47:15 PST"]
[Termination "WPWPWP-2015 won by resignation"]

1. d4 {[%clk 0:03:00.9]} 1... Nf6 {[%clk 0:02:59.1]} 2. c4 {[%clk 0:02:58.7]}
2... e6 {[%clk 0:02:57.9]} 3. Nc3 {[%clk 0:02:57.7]} 3... Bb4 {[%clk 0:02:56.9]}
4. f3 {[%clk 0:02:57.5]} 4... d5 {[%clk 0:02:54.3]} 5. a3 {[%clk 0:02:28.1]}
5... Bxc3+ {[%clk 0:02:44.9]} 6. bxc3 {[%clk 0:02:29]} 6... O-O {[%clk
0:02:44.7]} 7. cxd5 {[%clk 0:02:16.7]} 7... exd5 {[%clk 0:02:43.7]} 8. e3 {[%clk
0:02:11.7]} 8... c5 {[%clk 0:02:41.3]} 9. Bd3 {[%clk 0:02:11.1]} 9... Nc6 {[%clk
0:02:32.6]} 10. Ne2 {[%clk 0:02:09.2]} 10... Re8 {[%clk 0:02:25.7]} 11. O-O
{[%clk 0:02:07]} 11... Be6 {[%clk 0:02:16.9]} 12. Ng3 {[%clk 0:02:00.1]} 12...
Rc8 {[%clk 0:02:12.1]} 13. Ra2 {[%clk 0:01:52.4]} 13... cxd4 {[%clk 0:01:49.1]}
14. cxd4 {[%clk 0:01:50]} 14... Na5 {[%clk 0:01:48.3]} 15. Re2 {[%clk
0:01:38.4]} 15... Nc4 {[%clk 0:01:47]} 16. Kh1 {[%clk 0:01:34.6]} 16... Qd6
{[%clk 0:01:33.4]} 17. e4 {[%clk 0:01:24.3]} 17... dxe4 {[%clk 0:01:30.4]} 18.
fxe4 {[%clk 0:01:22.9]} 18... Qxd4 {[%clk 0:01:26]} 19. e5 {[%clk 0:01:20.2]}
19... Rcd8 {[%clk 0:01:16.2]} 20. exf6 {[%clk 0:01:07.4]} 20... Qxd3 {[%clk
0:01:13.8]} 21. Qxd3 {[%clk 0:00:57.3]} 21... Rxd3 {[%clk 0:01:14.7]} 22. Nh5
{[%clk 0:00:45.3]} 22... g6 {[%clk 0:01:09.3]} 23. Ng7 {[%clk 0:00:44.6]} 23...
Red8 {[%clk 0:01:07.4]} 24. Nxe6 {[%clk 0:00:44.4]} 24... fxe6 {[%clk
0:01:07.3]} 25. f7+ {[%clk 0:00:42.4]} 25... Kg7 {[%clk 0:01:04.7]} 26. Rxe6
{[%clk 0:00:39.2]} 26... Rf8 {[%clk 0:00:44.6]} 27. Re7 {[%clk 0:00:39.2]} 27...
Rd5 {[%clk 0:00:35.5]} 28. h3 {[%clk 0:00:37.7]} 28... Rf5 {[%clk 0:00:32.2]}
29. Rxf5 {[%clk 0:00:30.5]} 29... gxf5 {[%clk 0:00:33.1]} 30. Rc7 {[%clk
0:00:30.6]} 30... Nd6 {[%clk 0:00:25.2]} 31. Bb2+ {[%clk 0:00:28.5]} 31... Kg6
{[%clk 0:00:25.5]} 32. Be5 {[%clk 0:00:26.9]} 32... Nxf7 {[%clk 0:00:21]} 33.
Bf4 {[%clk 0:00:26.7]} 33... Re8 {[%clk 0:00:17.1]} 34. Rxb7 {[%clk 0:00:25.8]}
34... Re4 {[%clk 0:00:17.3]} 35. g3 {[%clk 0:00:24.2]} 35... Ra4 {[%clk
0:00:17.5]} 36. Rb3 {[%clk 0:00:20.6]} 36... a6 {[%clk 0:00:17.2]} 37. Rc3
{[%clk 0:00:19.5]} 37... Kf6 {[%clk 0:00:17.2]} 38. Kg2 {[%clk 0:00:19.2]} 38...
Ke6 {[%clk 0:00:17.4]} 39. Rd3 {[%clk 0:00:19]} 39... Ne5 {[%clk 0:00:17.6]} 40.
Re3 {[%clk 0:00:18.8]} 40... Re4 {[%clk 0:00:16.9]} 41. Rb3 {[%clk 0:00:17.9]}
41... Nc4 {[%clk 0:00:16]} 42. Rb8 {[%clk 0:00:16.7]} 42... Kd5 {[%clk 0:00:15]}
43. Ra8 {[%clk 0:00:16.5]} 43... Nxa3 {[%clk 0:00:14.3]} 44. Rxa6 {[%clk
0:00:16.1]} 44... Nc4 {[%clk 0:00:14.6]} 45. Rf6 {[%clk 0:00:15.8]} 45... Kd4
{[%clk 0:00:07.9]} 46. Rxf5 {[%clk 0:00:14.9]} 46... Re7 {[%clk 0:00:04.4]} 47.
Kf3 {[%clk 0:00:11.5]} 47... Ne5+ {[%clk 0:00:04.7]} 48. Bxe5+ {[%clk
0:00:10.9]} 48... Rxe5 {[%clk 0:00:05.6]} 49. Kg4 {[%clk 0:00:09.2]} 49... Re3
{[%clk 0:00:04.5]} 50. Rf7 {[%clk 0:00:08.2]} 50... Re4+ {[%clk 0:00:04.1]} 51.
Rf4 {[%clk 0:00:07.4]} 51... Ke5 {[%clk 0:00:01.5]} 52. Rxe4+ {[%clk 0:00:06.4]}
52... Kxe4 {[%clk 0:00:02.4]} 53. Kg5 {[%clk 0:00:04.5]} 53... Kf3 {[%clk
0:00:03.3]} 54. g4 {[%clk 0:00:03.6]} 54... Kg3 {[%clk 0:00:03.7]} 55. h4 {[%clk
0:00:04]} 55... Kh3 {[%clk 0:00:03.7]} 56. h5 {[%clk 0:00:04.4]} 56... Kg3
{[%clk 0:00:03.7]} 57. h6 {[%clk 0:00:04.7]} 57... Kf3 {[%clk 0:00:03.6]} 58.
Kf5 {[%clk 0:00:04.8]} 58... Kg3 {[%clk 0:00:02.9]} 59. g5 {[%clk 0:00:05.2]}
59... Kh4 {[%clk 0:00:03.8]} 60. g6 {[%clk 0:00:05.6]} 60... hxg6+ {[%clk
0:00:04.6]} 61. Kxg6 {[%clk 0:00:05.5]} 61... Kg4 {[%clk 0:00:04.8]} 62. h7
{[%clk 0:00:06.3]} 62... Kf4 {[%clk 0:00:05.4]} 63. h8=Q {[%clk 0:00:06.4]}
63... Ke4 {[%clk 0:00:06.3]} 64. Qf6 {[%clk 0:00:06.7]} 1-0

[Event "*** Titled Tuesday Blitz"]
[Site "Chess.com"]
[Date "2020.11.24"]
[Round "8"]
[White "Vulcanochess"]
[Black "EdmundPlayer"]
[Result "1/2-1/2"]
[WhiteElo "2297"]
[BlackElo "2152"]
[TimeControl "180+1"]
[EndTime "11:47:17 PST"]
[Termination "Game drawn by repetition"]

1. c4 {[%clk 0:03:00.9]} 1... e5 {[%clk 0:02:56.1]} 2. Nc3 {[%clk 0:02:58.5]}
2... Nf6 {[%clk 0:02:56]} 3. g3 {[%clk 0:02:58.4]} 3... d5 {[%clk 0:02:56.2]} 4.
cxd5 {[%clk 0:02:58.3]} 4... Nxd5 {[%clk 0:02:57.1]} 5. Bg2 {[%clk 0:02:58.8]}
5... Nb6 {[%clk 0:02:56.7]} 6. Nf3 {[%clk 0:02:59]} 6... Nc6 {[%clk 0:02:56.7]}
7. d3 {[%clk 0:02:58.4]} 7... Be7 {[%clk 0:02:56.8]} 8. a3 {[%clk 0:02:57.8]}
8... Be6 {[%clk 0:02:47.4]} 9. Be3 {[%clk 0:02:54]} 9... f6 {[%clk 0:02:17.7]}
10. Rc1 {[%clk 0:02:50.2]} 10... O-O {[%clk 0:02:16.4]} 11. b4 {[%clk
0:02:47.9]} 11... a5 {[%clk 0:02:15.7]} 12. Bxb6 {[%clk 0:02:16.1]} 12... axb4
{[%clk 0:02:00.9]} 13. Bxc7 {[%clk 0:01:41.8]} 13... Qxc7 {[%clk 0:02:01.8]} 14.
axb4 {[%clk 0:01:41.5]} 14... Bxb4 {[%clk 0:02:01.2]} 15. O-O {[%clk 0:01:40.8]}
15... Rfc8 {[%clk 0:01:58.2]} 16. Ne4 {[%clk 0:01:27]} 16... Qe7 {[%clk
0:01:51.7]} 17. Rb1 {[%clk 0:01:03.3]} 17... Ra2 {[%clk 0:01:35.6]} 18. e3
{[%clk 0:00:53]} 18... Rca8 {[%clk 0:01:31.4]} 19. Nfd2 {[%clk 0:00:45.4]} 19...
Rd8 {[%clk 0:01:10.7]} 20. Nb3 {[%clk 0:00:37.6]} 20... f5 {[%clk 0:00:56.3]}
21. Nc1 {[%clk 0:00:15.3]} 21... fxe4 {[%clk 0:00:42]} 22. Nxa2 {[%clk
0:00:14.3]} 22... Bxa2 {[%clk 0:00:42.9]} 23. Rb2 {[%clk 0:00:14.7]} 23... Bd5
{[%clk 0:00:42.8]} 24. dxe4 {[%clk 0:00:11.9]} 24... Bc4 {[%clk 0:00:39.2]} 25.
Qb1 {[%clk 0:00:07.7]} 25... Bxf1 {[%clk 0:00:38.4]} 26. Bxf1 {[%clk 0:00:07.3]}
26... h6 {[%clk 0:00:29.5]} 27. Bc4+ {[%clk 0:00:05.8]} 27... Kh7 {[%clk
0:00:28.8]} 28. Bd5 {[%clk 0:00:06.7]} 28... Rf8 {[%clk 0:00:04.9]} 29. Bxc6
{[%clk 0:00:06]} 29... bxc6 {[%clk 0:00:04.9]} 30. Rxb4 {[%clk 0:00:05.6]} 30...
Qf6 {[%clk 0:00:05.2]} 31. Rb2 {[%clk 0:00:05.3]} 31... Qf3 {[%clk 0:00:05.3]}
32. Rd2 {[%clk 0:00:03.1]} 32... c5 {[%clk 0:00:04.6]} 33. Qd1 {[%clk
0:00:02.5]} 33... Qxe4 {[%clk 0:00:03.3]} 34. Qc2 {[%clk 0:00:02]} 34... Qxc2
{[%clk 0:00:01.9]} 35. Rxc2 {[%clk 0:00:02.9]} 35... Rc8 {[%clk 0:00:02.1]} 36.
Kg2 {[%clk 0:00:02.8]} 36... Kg6 {[%clk 0:00:02.8]} 37. Kf3 {[%clk 0:00:03.7]}
37... Kf6 {[%clk 0:00:03.5]} 38. Ke4 {[%clk 0:00:04.1]} 38... Ke6 {[%clk
0:00:04.2]} 39. Rc4 {[%clk 0:00:04.5]} 39... g6 {[%clk 0:00:03.6]} 40. f4 {[%clk
0:00:04.6]} 40... h5 {[%clk 0:00:04.5]} 41. fxe5 {[%clk 0:00:04.3]} 41... Rc6
{[%clk 0:00:05]} 42. h4 {[%clk 0:00:04.4]} 42... Ke7 {[%clk 0:00:04.7]} 43. Kf4
{[%clk 0:00:04.5]} 43... Ke6 {[%clk 0:00:05]} 44. e4 {[%clk 0:00:04.1]} 44...
Ra6 {[%clk 0:00:05.7]} 45. Kg5 {[%clk 0:00:04.2]} 45... Ra3 {[%clk 0:00:05.9]}
46. Kxg6 {[%clk 0:00:04.2]} 46... Rxg3+ {[%clk 0:00:06.6]} 47. Kxh5 {[%clk
0:00:04.4]} 47... Kxe5 {[%clk 0:00:07.5]} 48. Rxc5+ {[%clk 0:00:04.6]} 48...
Kxe4 {[%clk 0:00:08.2]} 49. Rc8 {[%clk 0:00:04.9]} 49... Kf5 {[%clk 0:00:08.4]}
50. Rf8+ {[%clk 0:00:05.5]} 50... Ke6 {[%clk 0:00:08.8]} 51. Kh6 {[%clk
0:00:05.3]} 51... Rh3 {[%clk 0:00:08.7]} 52. h5 {[%clk 0:00:05.4]} 52... Rg3
{[%clk 0:00:09.6]} 53. Rf4 {[%clk 0:00:05.5]} 53... Ke7 {[%clk 0:00:10.1]} 54.
Kh7 {[%clk 0:00:05.5]} 54... Rh3 {[%clk 0:00:09.9]} 55. h6 {[%clk 0:00:05.8]}
55... Rg3 {[%clk 0:00:10.8]} 56. Rf1 {[%clk 0:00:03.6]} 56... Ke8 {[%clk
0:00:11.7]} 57. Rf4 {[%clk 0:00:02.8]} 57... Rh3 {[%clk 0:00:12.6]} 58. Rf5
{[%clk 0:00:03.3]} 58... Rg3 {[%clk 0:00:13.4]} 59. Rf6 {[%clk 0:00:03.7]} 59...
Ke7 {[%clk 0:00:14.3]} 60. Rf4 {[%clk 0:00:03.6]} 60... Ke6 {[%clk 0:00:14.6]}
61. Rf1 {[%clk 0:00:03.2]} 61... Ke7 {[%clk 0:00:15.5]} 62. Kh8 {[%clk
0:00:03.2]} 62... Rg4 {[%clk 0:00:16]} 63. Rf5 {[%clk 0:00:02.5]} 63... Ke8
{[%clk 0:00:16.9]} 64. Kh7 {[%clk 0:00:02.7]} 64... Rg3 {[%clk 0:00:17.6]} 65.
Re5+ {[%clk 0:00:03]} 65... Kf7 {[%clk 0:00:17.5]} 66. Rf5+ {[%clk 0:00:03.9]}
66... Ke6 {[%clk 0:00:17.3]} 67. Rf1 {[%clk 0:00:04.6]} 67... Ke7 {[%clk
0:00:17.7]} 68. Kh8 {[%clk 0:00:05.2]} 68... Ke8 {[%clk 0:00:18.2]} 69. Kh7
{[%clk 0:00:03.1]} 69... Ke7 {[%clk 0:00:18.2]} 1/2-1/2

[Event "*** Titled Tuesday Blitz"]
[Site "Chess.com"]
[Date "2020.11.24"]
[Round "8"]
[White "ViktoriyaTarasova"]
[Black "Shuvalov"]
[Result "1/2-1/2"]
[WhiteElo "2302"]
[BlackElo "2453"]
[TimeControl "180+1"]
[EndTime "11:47:20 PST"]
[Termination "Game drawn - insufficient material"]

1. d4 {[%clk 0:03:00.9]} 1... Nf6 {[%clk 0:02:58.9]} 2. c4 {[%clk 0:03:00.9]}
2... g6 {[%clk 0:02:58.8]} 3. Nc3 {[%clk 0:03:00.8]} 3... d5 {[%clk 0:02:59]} 4.
cxd5 {[%clk 0:02:59.7]} 4... Nxd5 {[%clk 0:02:59.9]} 5. g3 {[%clk 0:03:00]} 5...
Bg7 {[%clk 0:02:57.4]} 6. Bg2 {[%clk 0:03:00.3]} 6... Nxc3 {[%clk 0:02:57.2]} 7.
bxc3 {[%clk 0:02:59.6]} 7... O-O {[%clk 0:02:57.1]} 8. e3 {[%clk 0:02:59.1]}
8... c5 {[%clk 0:02:55.3]} 9. Ne2 {[%clk 0:02:59.2]} 9... Qc7 {[%clk 0:02:53.1]}
10. O-O {[%clk 0:02:58]} 10... Rd8 {[%clk 0:02:51.9]} 11. Qb3 {[%clk 0:02:37.3]}
11... Nc6 {[%clk 0:02:46.4]} 12. Ba3 {[%clk 0:02:33.9]} 12... b6 {[%clk
0:02:28.6]} 13. Rad1 {[%clk 0:02:28.7]} 13... Bb7 {[%clk 0:02:24.4]} 14. Bb2
{[%clk 0:02:07.4]} 14... Na5 {[%clk 0:02:22.9]} 15. Qb5 {[%clk 0:01:53.5]} 15...
Bxg2 {[%clk 0:02:20.5]} 16. Kxg2 {[%clk 0:01:54.2]} 16... Qb7+ {[%clk
0:02:14.1]} 17. f3 {[%clk 0:01:51.1]} 17... Qd5 {[%clk 0:01:50.4]} 18. a4 {[%clk
0:01:36.9]} 18... Qc4 {[%clk 0:01:30.8]} 19. Qxc4 {[%clk 0:01:34.5]} 19... Nxc4
{[%clk 0:01:30.9]} 20. Bc1 {[%clk 0:01:35.2]} 20... e6 {[%clk 0:01:22.7]} 21.
Kf2 {[%clk 0:01:30.6]} 21... Rac8 {[%clk 0:01:20.6]} 22. Nf4 {[%clk 0:01:30.1]}
22... Na5 {[%clk 0:00:42.7]} 23. Bd2 {[%clk 0:01:04.4]} 23... Nb3 {[%clk
0:00:34.4]} 24. Ke2 {[%clk 0:01:00]} 24... cxd4 {[%clk 0:00:26.3]} 25. exd4
{[%clk 0:00:52.8]} 25... Rc4 {[%clk 0:00:22.7]} 26. Nd3 {[%clk 0:00:41.3]} 26...
Rxa4 {[%clk 0:00:20.1]} 27. Nb4 {[%clk 0:00:41]} 27... a5 {[%clk 0:00:16.8]} 28.
Nd3 {[%clk 0:00:36.2]} 28... Ra2 {[%clk 0:00:16]} 29. Nc1 {[%clk 0:00:33.7]}
29... Rb2 {[%clk 0:00:14.5]} 30. Nxb3 {[%clk 0:00:32.7]} 30... Rxb3 {[%clk
0:00:15.4]} 31. Rb1 {[%clk 0:00:33.2]} 31... Rxb1 {[%clk 0:00:13.2]} 32. Rxb1
{[%clk 0:00:33.9]} 32... Rd6 {[%clk 0:00:14.1]} 33. Bf4 {[%clk 0:00:33.4]} 33...
Rc6 {[%clk 0:00:13.9]} 34. Kd3 {[%clk 0:00:34]} 34... Kf8 {[%clk 0:00:13.6]} 35.
c4 {[%clk 0:00:33.7]} 35... Ke8 {[%clk 0:00:13.9]} 36. d5 {[%clk 0:00:33.6]}
36... exd5 {[%clk 0:00:13.5]} 37. cxd5 {[%clk 0:00:33.8]} 37... Rc5 {[%clk
0:00:13.7]} 38. d6 {[%clk 0:00:27.9]} 38... b5 {[%clk 0:00:13.5]} 39. Re1+
{[%clk 0:00:22.7]} 39... Kd8 {[%clk 0:00:13.7]} 40. Re7 {[%clk 0:00:22]} 40...
g5 {[%clk 0:00:12.7]} 41. Rxf7 {[%clk 0:00:17.1]} 41... gxf4 {[%clk 0:00:12.1]}
42. Rxg7 {[%clk 0:00:17.8]} 42... Rd5+ {[%clk 0:00:12.2]} 43. Kc2 {[%clk
0:00:16.6]} 43... fxg3 {[%clk 0:00:11.8]} 44. hxg3 {[%clk 0:00:15.1]} 44... Rxd6
{[%clk 0:00:12]} 45. Rxh7 {[%clk 0:00:15]} 45... a4 {[%clk 0:00:11.6]} 46. Kc3
{[%clk 0:00:11.4]} 46... Kc8 {[%clk 0:00:10.8]} 47. Kb4 {[%clk 0:00:11]} 47...
Ra6 {[%clk 0:00:10.6]} 48. Ka3 {[%clk 0:00:10]} 48... Kd8 {[%clk 0:00:08.9]} 49.
f4 {[%clk 0:00:09.1]} 49... Rg6 {[%clk 0:00:08.3]} 50. Rh3 {[%clk 0:00:07.7]}
50... Kc7 {[%clk 0:00:08.1]} 51. Kb4 {[%clk 0:00:07.3]} 51... Kb6 {[%clk
0:00:07.8]} 52. Rh5 {[%clk 0:00:03.8]} 52... Ka6 {[%clk 0:00:06.9]} 53. Rxb5
{[%clk 0:00:03.5]} 53... Rxg3 {[%clk 0:00:06.5]} 54. Ra5+ {[%clk 0:00:03.6]}
54... Kb6 {[%clk 0:00:06.8]} 55. Rxa4 {[%clk 0:00:04]} 55... Rg4 {[%clk
0:00:06.1]} 56. Ra8 {[%clk 0:00:03.3]} 56... Rxf4+ {[%clk 0:00:05.8]} 57. Kb3
{[%clk 0:00:03.8]} 57... Rf7 {[%clk 0:00:06.7]} 58. Kb4 {[%clk 0:00:03.9]} 58...
Kc6 {[%clk 0:00:07]} 59. Ra6+ {[%clk 0:00:03.5]} 59... Kb7 {[%clk 0:00:07.1]}
60. Ra5 {[%clk 0:00:03]} 60... Rf4+ {[%clk 0:00:07.5]} 61. Ka3 {[%clk
0:00:03.5]} 61... Rf3+ {[%clk 0:00:07.6]} 62. Kb2 {[%clk 0:00:03.3]} 62... Rf4
{[%clk 0:00:08.5]} 63. Kb3 {[%clk 0:00:03.4]} 63... Kb6 {[%clk 0:00:08.5]} 64.
Ra4 {[%clk 0:00:03.5]} 64... Rxa4 {[%clk 0:00:07.9]} 65. Kxa4 {[%clk 0:00:03.4]}
1/2-1/2